Cogmind - Beta 13 X1 @@@ ROGUE MODE // 2023.06.22 @ 13:41:54 Player: Terminus Result: Destroyed by VV-MGU(R) with Subdweller Laser Performance ------------- Evolutions (0) 0 Regions Visited (3) 600 Robots Destroyed (41) 205 Value Destroyed (799) 799 Prototype IDs (0) 0 Alien Tech Used (0) 0 Bonus (0) 0 TOTAL SCORE: 1604 Bonus ------- None Cogmind --------- Core Integrity 0/250 Matter 281/300 Energy 194/200 System Corruption 1% Temperature Cool (21) Movement Treading (240) Ox1 Location -10/Subcaves Parts ------- > --- POWER (1) -------- Subdweller Power Source > --- PROPULSION (2) --- Light Treads Carbon-fiber Leg > --- UTILITY (2) ------ Large Storage Unit Light Armor Plating (fused) > --- WEAPON (2) ------- Subdweller Beam Cannon Battle Rifle > --- INVENTORY (15) --- Ion Engine Aluminum Leg Aluminum Leg Carbon-fiber Leg Improved Heat Sink Improved Heat Sink Scrap Shield Hacking Suite Medium Laser Beam Rifle Beamcaster Beam Cannon Rocket Launcher Peak State ------------ > --- POWER ------------ Subdweller Power Source > --- PROPULSION ------- Light Treads Carbon-fiber Leg > --- UTILITY ---------- Large Storage Unit Light Armor Plating > --- WEAPON ----------- Subdweller Beam Cannon Battle Rifle > --- INVENTORY -------- Ion Engine Aluminum Leg Aluminum Leg Carbon-fiber Leg Improved Heat Sink Improved Heat Sink Scrap Shield Hacking Suite Medium Laser Beam Rifle Beamcaster Beam Cannon Rocket Launcher [Rating: 15] Favorites ----------- Power Ion Engine Engine Ion Engine Propulsion Aluminum Leg Treads Light Treads Leg Aluminum Leg Utility Large Storage Unit Device Heat Sink Storage Large Storage Unit Protection Light Armor Plating Weapon Medium Laser Energy Gun Medium Laser Energy Cannon Beam Cannon Ballistic Gun Heavy Assault Rifle Build | -11 -10 -10 -10 ------- Run | Jun Mat Min Sub Slots Evolved . | . . . . Power . | . . . . Propulsion . | . . . . Utility . | . . . . Weapon . | . . . . Parts Attached 38 | 6 17 7 8 Power 4 | 1 2 . 1 Engine 4 | 1 2 . 1 Core . | . . . . Reactor . | . . . . Propulsion 11 | 2 5 3 1 Treads 2 | . . 2 . Leg 9 | 2 5 1 1 Wheel . | . . . . Hover . | . . . . Flight . | . . . . Utility 9 | 1 4 1 3 Device 1 | . 1 . . Storage 4 | 1 3 . . Processor . | . . . . Hackware . | . . . . Protection 4 | . . 1 3 Artifact . | . . . . Weapon 14 | 2 6 3 3 Energy Gun 10 | 2 6 1 1 Energy Cannon 2 | . . 1 1 Ballistic Gun 2 | . . 1 1 Ballistic Cannon . | . . . . Launcher . | . . . . Special Weapon . | . . . . Impact Weapon . | . . . . Slashing Weapon . | . . . . Piercing Weapon . | . . . . Special Melee Weapon . | . . . . Unidentified Prototypes . | . . . . Parts Lost 6 | . 1 1 4 Power . | . . . . Propulsion 3 | . 1 1 1 Utility 2 | . . . 2 Weapon 1 | . . . 1 Highest Loss Streak 3 | . 1 1 3 To Critical Strikes . | . . . . Average Slot Usage (%) 95 | . 94 99 97 Engine 13 | . 13 14 14 Treads 8 | . . 25 27 Leg 19 | . 27 2 . Device 7 | . 8 4 . Storage 14 | . 14 14 14 Protection 3 | . . 9 12 Energy Gun 19 | . 27 2 3 Energy Cannon 4 | . . 12 14 Ballistic Gun 4 | . . 12 9 Naked Turns . | . . . . Heaviest Build 38 | 12 30 34 38 Greatest Support 40 | 20 20 40 40 Greatest Overweight (x) 2 | 1 2 2 1 Average Overweight (x) . | . . . . Largest Inventory Capacity 15 | 8 15 15 15 Average Capacity 14 | 6 14 15 15 Most Carried 15 | 2 15 15 15 Average Carried 13 | 1 12 14 14 Final Capacity 15 | 8 15 15 15 Final Carried 15 | 2 15 15 14 Class Distribution -------------------- 71% | Mutant 28% | Scavenger-Mutant Dominant Class ---------------- Mutant | -10/Materials Scavenger-Mutant | -10/Mines Scavenger-Mutant | -10/Subcaves Resources | -11 -10 -10 -10 ----------- Run | Jun Mat Min Sub Matter Collected 666 | 231 215 139 81 Remotely . | . . . . Salvage Created 1295 | . 810 364 121 Parts 83 | . 52 21 10 Haulers Intercepted 2 | . 2 . . Recyclers Shooed 2 | . 2 . . Parts Field Recycled . | . . . . Retrieved Matter . | . . . . Parts Self-Destructed 4 | . . . 4 Prevented . | . . . . Kills | -11 -10 -10 -10 ------- Run | Jun Mat Min Sub Combat Hostiles Destroyed 27 | . 13 11 3 Guns 16 | . 12 3 1 Cannons 8 | . . 6 2 Classes Destroyed 11 | . 9 1 1 Worker 2 | . 1 1 . Builder 1 | . 1 . . Tunneler 1 | . 1 . . Hauler 2 | . 2 . . Recycler 3 | . 3 . . Operator 2 | . 2 . . Watcher 3 | . 3 . . Swarmer 12 | . 6 6 . Grunt 10 | . 7 3 . Sentry 2 | . . 2 . Subdweller 3 | . . . 3 Best Kill Streak 4 | . 4 3 2 Combat Bots Only 3 | . 3 3 2 Max Kills in Single Turn 2 | . 2 1 1 Gunslinging . | . . . . Exploded . | . . . . Melee . | . . . . Uniques/NPCs Destroyed . | . . . . Combat | -11 -10 -10 -10 -------- Run | Jun Mat Min Sub Damage Taken 1440 | . 452 425 563 Core 272 | . 88 76 108 Absorbed by Shields . | . . . . Regen/Repaired (Parts) 67 | . 67 . . Core Remaining (%) 100 | 100 . . . Volleys Fired 118 | . 75 24 19 Largest 2 | . 2 2 2 Hottest 110 | . 100 100 110 Shots Fired 237 | . 151 49 37 Gun 199 | . 151 30 18 Cannon 38 | . . 19 19 Launcher . | . . . . Special . | . . . . Kinetic 27 | . . 18 9 Thermal 210 | . 151 31 28 Explosive . | . . . . Electromagnetic . | . . . . Robot Hit Streak 20 | . 20 17 7 Robot Miss Streak 12 | . 12 4 1 Penetration Max . | . . . . Secondary Targets 1 | . . 1 . Max Gunslinging Chain 1 | . . 1 . Shots Hit Robots 152 | . 97 31 24 Core Hits 56 | . 38 14 4 Critical Kills 1 | . . 1 . Critical Parts Destroyed . | . . . . Critical Strikes 8 | . 6 2 . Burn 7 | . 6 1 . Meltdown 1 | . . 1 . Melee Attacks . | . . . . Impact . | . . . . Slashing . | . . . . Piercing . | . . . . Sneak Attacks . | . . . . Combat Hostiles . | . . . . Follow-up Attacks . | . . . . Damage Inflicted 2179 | . 1293 504 382 Guns 1668 | . 1270 237 161 Cannons 451 | . . 230 221 Explosions . | . . . . Melee . | . . . . Ramming 60 | . 23 37 . Kinetic 164 | . . 89 75 Thermal 1955 | . 1270 378 307 Explosive . | . . . . Electromagnetic . | . . . . Impact . | . . . . Slashing . | . . . . Piercing . | . . . . Highest Corruption 1 | . 1 1 1 Average Corruption 1 | . 1 1 1 Corruption Purged . | . . . . Corruption Blocked . | . . . . Effects 18 | . 11 5 2 Message Errors 5 | . 4 1 . Matter Fused 7 | . 4 2 1 Energy Discharges 2 | . 2 . . Parts Fused 2 | . . 1 1 Misfires 2 | . 1 1 . Overload Shots . | . . . . Overflow Damage . | . . . . Projectiles . | . . . . Explosions . | . . . . Melee . | . . . . Knockbacks . | . . . . Impact . | . . . . Kinetic . | . . . . Secondary . | . . . . Self-Inflicted Damage . | . . . . Shots . | . . . . Rammed 4 | . . 4 . Targets Rammed 7 | . 3 4 . Kicked 3 | . 3 . . Crushed . | . . . . Highest Temperature 300 | . 300 162 64 Average Temperature 65 | . 69 63 34 Received Heat Transfer 420 | . 150 93 177 Siege Activations . | . . . . Robots Corrupted . | . . . . Combat Hostiles . | . . . . Parts Fried . | . . . . Impact Corruptions . | . . . . Robots Melted 3 | . 1 2 . Combat Hostiles 3 | . 1 2 . Parts Melted 10 | . 6 3 1 Heat Transferred 5571 | . 3869 999 703 Parts Sabotaged . | . . . . Parts Stolen . | . . . . Parts Stripped . | . . . . Power Chain Reactions . | . . . . Missiles Intercepted . | . . . . Alert | -11 -10 -10 -10 ------- Run | Jun Mat Min Sub Peak Influence 190 | . 179 190 . Initial 25 | . . 25 . Average 75 | . 68 98 . Maximum Alert Level . | . . . . Low Security (%) 100 | 100 100 100 . Level 1 . | . . . . Level 2 . | . . . . Level 3 . | . . . . Level 4 . | . . . . Level 5 . | . . . . High Security . | . . . . Max Security . | . . . . Squads Dispatched 4 | . 4 . . Investigation 2 | . 2 . . Extermination . | . . . . Reinforcement 2 | . 2 . . Assault . | . . . . Garrison . | . . . . Intercept . | . . . . Searches Triggered . | . . . . Construction Impeded . | . . . . Haulers Reinforced . | . . . . Active Scanning Responses . | . . . . Cargo Convoy Interrupts . | . . . . Stealth | -11 -10 -10 -10 --------- Run | Jun Mat Min Sub Distress Signals 3 | . 3 . . Communications Jammed . | . . . . Distress Signals . | . . . . Times Spotted 52 | . 26 14 12 Peak Tracking Total 7 | . 4 3 7 Tactical Retreats 6 | . 1 3 2 Traps | -11 -10 -10 -10 ------- Run | Jun Mat Min Sub Traps Triggered 7 | . 7 . . Indirectly . | . . . . Trap Hack Attempts . | . . . . Triggered . | . . . . Disarmed . | . . . . Reprogrammed . | . . . . Reused . | . . . . Traps Extracted . | . . . . Installed . | . . . . Triggered . | . . . . Machines | -11 -10 -10 -10 ---------- Run | Jun Mat Min Sub Machines Disabled . | . . . . Max in Single Turn . | . . . . Machines Repaired . | . . . . Machines Sabotaged . | . . . . Overloaded Fab Kills . | . . . . Hacking | -11 -10 -10 -10 --------- Run | Jun Mat Min Sub Machines Accessed 7 | . 7 . . Terminals 5 | . 5 . . Fabricators . | . . . . Repair Stations 1 | . 1 . . Recycling Units 1 | . 1 . . Scanalyzers . | . . . . Garrison Access . | . . . . Total Hacks 18 | . 18 . . Successful 9 | . 9 . . Failed 9 | . 9 . . Catastrophic 2 | . 2 . . Database Lockouts . | . . . . Manual 11 | . 11 . . Terminals 15 | . 15 . . Fabricators . | . . . . Repair Stations 2 | . 2 . . Recycling Units 1 | . 1 . . Scanalyzers . | . . . . Garrison Access . | . . . . Terminal Hacks 3 | . 3 . . Robot Analysis 1 | . 1 . . Terminal Index 1 | . 1 . . Hauler Manifests 1 | . 1 . . Fabricator Hacks . | . . . . Repair Station Hacks 2 | . 2 . . Scan Component 1 | . 1 . . Repair 1 | . 1 . . Recycling Unit Hacks . | . . . . Scanalyzer . | . . . . Garrison Access Hacks . | . . . . Unauthorized Hacks 4 | . 4 . . Terminals 3 | . 3 . . Assimilate 1 | . 1 . . Botnet 2 | . 2 . . Fabricators . | . . . . Repair Stations . | . . . . Recycling Units 1 | . 1 . . Tunnel 1 | . 1 . . Scanalyzers . | . . . . Garrison Access . | . . . . Data Cores Recovered . | . . . . Used . | . . . . Hacking Detections 6 | . 6 . . Full Trace Events . | . . . . Feedback Events . | . . . . Feedback Blocked . | . . . . Robot Schematics Acquired . | . . . . Robots Built . | . . . . Authchips . | . . . . Time . | . . . . Total Robot Build Rating . | . . . . Part Schematics Acquired . | . . . . Parts Built . | . . . . Authchips . | . . . . Time . | . . . . Total Part Build Rating . | . . . . Parts Repaired 1 | . 1 . . Time 26 | . 26 . . Parts Recycled . | . . . . Recycled Matter . | . . . . Retrieved Matter . | . . . . Retrieved Components . | . . . . Parts Scanalyzed . | . . . . Part Schematics Acquired . | . . . . Parts Damaged . | . . . . Bothacking | -11 -10 -10 -10 ------------ Run | Jun Mat Min Sub Used RIF Installer . | . . . . Robots Hacked . | . . . . Non-combat . | . . . . Combat . | . . . . Robot Hacks Applied . | . . . . Relay Couplers Released . | . . . . Fabnet Peak Effective % . | . . . . Robots Rewired . | . . . . Allies Hacked . | . . . . Hacks Repelled . | . . . . Allies | -11 -10 -10 -10 -------- Run | Jun Mat Min Sub Total Allies . | . . . . Largest Group . | . . . . Highest-Rated Group . | . . . . Highest-Rated Ally . | . . . . Total Orders . | . . . . Ally Attacks . | . . . . Total Damage . | . . . . Kills . | . . . . Allies Corrupted . | . . . . Allies Melted . | . . . . Intel | -11 -10 -10 -10 ------- Run | Jun Mat Min Sub Robot Analysis Total 1 | . 1 . . Derelict Logs Recovered . | . . . . Drone Launches . | . . . . Drone Recoveries . | . . . . Exploration | -11 -10 -10 -10 ------------- Run | Jun Mat Min Sub Turns Passed 3188 | 56 2077 813 242 Spaces Moved 1383 | 40 842 420 81 Core 9 | 9 . . . Treads 475 | . . 394 81 Legs 899 | 31 842 26 . Wheels . | . . . . Hover . | . . . . Flight . | . . . . Fastest Speed 50 | 50 120 160 160 Average Speed 172 | 114 181 162 160 Slowest Speed 260 | 120 260 260 240 Overloaded Moves . | . . . . Propulsion Burnouts . | . . . . Robots Hopped . | . . . . Cave-ins Triggered . | . . . . Exploration Rate (%) 45 | 3 97 76 5 Regions Visited 3 Branch Regions 2 Pre-discovered Areas 1 | . 1 . . Known Exits Taken . | . . . . Unknown Exits Taken 3 | 1 1 1 . Scrap Searched 1 | . . 1 . Spaces Dug . | . . . . Terrain Destroyed 1 | . . . 1 Melee . | . . . . Projectile 1 | . . . 1 AOE . | . . . . Terrain Rammed . | . . . . Walls Destroyed . | . . . . Machines Disabled . | . . . . Actions | -11 -10 -10 -10 --------- Run | Jun Mat Min Sub Total 1941 | 47 1234 501 159 Wait 353 | . 282 33 38 Move 1380 | 39 841 419 81 Hop . | . . . . Pick Up 25 | 2 11 6 6 Fast Attach 19 | 6 9 2 2 Attach 6 | . 1 1 4 Detach . | . . . . Swap 13 | . 7 4 2 Drop 20 | . 5 8 7 Fire 118 | . 75 24 19 Melee . | . . . . Ram . | . . . . Kick 3 | . 3 . . Crush 4 | . . 4 . Escape Stasis . | . . . . Rewire . | . . . . Trap . | . . . . Miscellaneous . | . . . . Route ------- -11/Junkyard -10/Materials (discovered 5 exits: [*Mat x3] / [*Min x2]) -10/Mines (discovered 2 exits: [*Mat] / [*Sub]) -10/Subcaves History --------- Turn | Location | Event 2 | -11/Junkyard | Met Revision 17 8 | -11/Junkyard | Discovered new exit (range 15) 57 | -11/Junkyard | Entered Materials 306 | -10/Materials | Build established: Mutant 735 | -10/Materials | Discovered new exit (range 13) 947 | -10/Materials | Discovered new exit (range 4) 1204 | -10/Materials | Repaired Aluminum Leg 1465 | -10/Materials | Discovered new exit (range 7) 1575 | -10/Materials | Discovered new exit (range 8) 1944 | -10/Materials | Discovered new exit (range 5) 2134 | -10/Materials | Entered Mines 2135 | -10/Mines | Met a Derelict bent on vengeance 2255 | -10/Mines | Discovered new exit (range 10) 2321 | -10/Mines | Core integrity fell below 50% 2397 | -10/Mines | Discovered new exit (range 12) 2491 | -10/Mines | Build established: Scavenger-Mutant 2842 | -10/Mines | Received a Rocket Launcher from a helpful Derelict 2947 | -10/Mines | Entered Subcaves 3052 | -10/Subcaves | Shifting Twisted Machinery released Sub. Beam Cannon 3057 | -10/Subcaves | Ambushed by swarm of Subdwellers 3107 | -10/Subcaves | Core integrity fell below 20% 3147 | -10/Subcaves | Lost 3 parts (2u1w) 3189 | -10/Subcaves | Destroyed by VV-MGU(R) with Subdweller Laser Last Messages --------------- 03117_ Sub. Power Source melted. 03117_ 65-PKC(R) destroyed. 03135_ Acquired 37 matter. 03140_ System corrupted: Lgt. Armor Plating fused. 03142_ Acquired Carbon-fiber Leg. 03145_ Acquired Imp. Heat Sink. 03149_ Acquired Beamcaster. 03152_ Dropped Med. Laser. 03152_ Acquired Battle Rifle. 03155_ Discarded Beam Cannon. 03159_ Dropped Heat Sink. 03159_ Acquired Carbon-fiber Leg. 03162_ Dropped Ion Engine. 03165_ Dropped Heat Sink. 03165_ Acquired Imp. Heat Sink. 03166_ Acquired 30 matter. 03178_ Lgt. Treads destroyed. 03185_ QT-HCD(R) destroyed. 03188_ E3-8FR(R) destroyed. 03188_ VV-MGU(R) affixes Scrap Shield Fragment to Scrap Shield. Map ----- +----------------------------------------------------+ | ?????????????????????????????????????????????????? | | ?????????????????????????????????????????????????? | | ?????????????????????????????????????????????????? | | ?????????????????????????????????????????????????? | | ?????????????????????????????????????????????????? | | ?????????????????????????????????????????????????? | | ?????????????????????????????????????????????????? | | ?????????????????????????????????????????????????? | | ?????????????????????????????????????????????????? | | ?????????????????????????????????????????????????? | | ?????????????????????????????????????????????????? | | ?????????????????????????????????????????????????? | | ?????????????????????????????????????????????????? | | ?????????????????????????????????????????????????? | | ??????????????????##?????????????????????????????? | | ?????????????????## ######???????????????#####???? | | ?????????????????#"" """"??????????????## ##??? | | ?????????????????# " #????????????###" % ##?? | | ??????????????????#" ! #???????###### # #?? | | ????????????????????# * #??###??# % #?? | | ????????????????????# =!####"##### # ## # ### | | ???????????????????## # % !="#"|! ######## "# | | ?????????????????###"""*%[% %! #??????# | | ?????????????????# "#"%R&%]## #### ###??????# | | ??????????????????#""""# !#####??###????????##### | | ???????????????"""##"""]=@#?????????????????????## | | ?????????????? """ ""[%### ##?????????????????? | | ???????????????""""" =!* #???????????????? | | ???????????????##### ! ## # #???????????????? | | ???????????????????#######??##???????????????????? | | ?????????????????????????????????????????????????? | | ?????????????????????????????????????????????????? | | ?????????????????????????????????????????????????? | | ?????????????????????????????????????????????????? | | ?????????????????????????????????????????????????? | | ?????????????????????????????????????????????????? | | ?????????????????????????????????????????????????? | | ?????????????????????????????????????????????????? | | ?????????????????????????????????????????????????? | | ?????????????????????????????????????????????????? | | ?????????????????????????????????????????????????? | | ?????????????????????????????????????????????????? | | ?????????????????????????????????????????????????? | | ?????????????????????????????????????????????????? | | ?????????????????????????????????????????????????? | | ?????????????????????????????????????????????????? | | ?????????????????????????????????????????????????? | | ?????????????????????????????????????????????????? | | ?????????????????????????????????????????????????? | | ?????????????????????????????????????????????????? | +----------------------------------------------------+ Best States ------------- Heat Dissipation 35 Energy Generation 15 Energy Capacity 250 Matter Stores 300 Matter Capacity 300 Sight Range 16 Terrain Scan Density 10 Armor Coverage 150 Evasion (%) 55 Recoil Reduction 2 Item Schematics ----------------- None Robot Schematics ------------------ None Fabricated ------------ Nothing Alien Tech Used ----------------- None Achievements -------------- None Challenges ------------ None Game ------ Seed UtilityFlyingPod Manual? 0 Play Time 00:21:21 Cumulative 1708.3 hours Start 2023.06.22 @ 13:25:14 End 2023.06.22 @ 13:41:54 Sessions 1 Manual Loads 0 Difficulty Rogue Special Mode None Game No. 602 Rogue 602 Adventurer 0 Explorer 0 Win Type - Total 130 Types 27/13/56/7/1/2/22/1/1 Lore% 93 Gallery% 94 Achievement% 87 Wizard Run 0 Options --------- ASCII 0 Keyboard 0 Movement Numpad Keybinds 0 Fullscreen 2 Font 18/SmallcapsGlow Map View 76x50 Tactical HUD 1 Map Filters NONE Filters NONE Steam 1 RUN: 6b320461-84a5-4efe-9005-7158278aead9